Workbook

Sheet Sheet1
A1: USDA - RUS | C1: Title of Information Document | I1: OMB No.
C2: Water and Waste Loan and Grant Program | J2: 0572-0121
A3: SUMMARY OF INFORMATION COLLECTION | C3: 7 CFR 1780 | I3: Date Prepared
I4: 2018
A5: INSTRUCTIONS: | E5: > | F5: (f) TOTAL | H5: (h) TOTAL | J5: (k) TOTAL
A6: Use this form when a single information collection document involves multiple reporting and | E6: > | F6: - | G6: = (e) Average | H6: - | I6: = (g) Average | J6: - | K6: = (j) Average
A7: recordkeeping requirements. | E7: > | F7: (d) TOTAL | H7: (f) TOTAL | J7: (i) TOTAL
A8: IDENTIFICATION OF REPORTING AND RECORDKEEPPING REQUIREMENTS | G8: ANNUAL BURDEN
C9: FORM | F9: REPORTS | J9: RECORDS
C10: NO(s) | D10: NO. OF | E10: NO. OF | F10: TOTAL | G10: HOURS | H10: TOTAL | I10: NO. OF | J10: ANNUAL | K10: TOTAL
A11: SECTION OF | C11: (If "none" | D11: RESPON- | E11: RESPONSES | F11: ANNUAL | G11: PER | H11: HOURS | I11: RECORD- | J11: HOURS PER | K11: RECORD-
A12: REGULATIONS | B12: DESCRIPTION | C12: so state) | D12: DENTS | E12: PER | F12: RESPONSES | G12: RESPONSE | H12: (Col. f & g) | I12: KEEPERS | J12: RECORD- | K12: KEEPING
E13: RESPON- | F13: (Col. d & e) | J13: KEEPER | K13: HOURS
E14: DENT | K14: (Col. i & j)
A15: (a) | B15: (b) | C15: (c) | D15: (d) | E15: (e) | F15: (f) | G15: (g) | H15: (h) | I15: (i) | J15: (j) | K15: (k)
B17: NON-FORM BURDEN-(Under this collection 0572-0121)
B18: Application/Eligibility: (uses application data)
A19: 1780.1(d) | B19: Documentation of Income Survey | C19: Written | D19: 158 | E19: 1 | F19: =D19*E19 -> 158 | G19: 8.00 | H19: =F19*G19 -> 1,264
B20: 7 CFR 1777-Section 306C (0572-0109) | D20: 6 | E20: 1 | F20: =SUM(D20*E20) -> 6 | G20: 8.00 | H20: =SUM(F20*G20) -> 48
B21: 7 CFR 1778-ECWAG (0572-0110) | D21: 9 | E21: 1 | F21: =D21*E21 -> 9 | G21: 8.00 | H21: =F21*G21 -> 72
A23: 1780.1(f) | B23: Relationship or association with RUS employees | C23: Written | D23: 789 | E23: 1 | F23: =SUM(D23*E23) -> 789 | G23: 0.25 | H23: =SUM(F23*G23) -> 197
B24: 7 CFR 1777-Section 306C (0572-0109) | D24: 30 | E24: 1 | F24: =D24*E24 -> 30 | G24: 0.25 | H24: =F24*G24 -> 8
B25: 7 CFR 1778-ECWAG (0572-0110) | D25: 46 | E25: 1 | F25: =D25*E25 -> 46 | G25: 0.25 | H25: =F25*G25 -> 12
A27: 1780.7(d) & | B27: Statement on availability to obtain credit elsewhere | C27: Written | D27: 789 | E27: 1 | F27: =SUM(D27*E27) -> 789 | G27: 1.00 | H27: =SUM(F27*G27) -> 789
A28: 1780.33 (d) | B28: 7 CFR 1777-Section 306C | D28: 30 | E28: 1 | F28: =D28*E28 -> 30 | G28: 1.00 | H28: =F28*G28 -> 30
B29: 7 CFR 1778-ECWAG | D29: 46 | E29: 1 | F29: =D29*E29 -> 46 | G29: 1.00 | H29: =F29*G29 -> 46
A31: 1780.11(a)(2) | B31: Notification of service statement | C31: Written | D31: 158 | E31: 1 | F31: =SUM(D31*E31) -> 158 | G31: 1.00 | H31: =SUM(F31*G31) -> 158
B32: 7 CFR 1777-Colonias | D32: 6 | E32: 1 | F32: =D32*E32 -> 6 | G32: 1.00 | H32: =F32*G32 -> 6
B33: 7 CFR 1778-ECWAG | D33: 9 | E33: 1 | F33: =D33*E33 -> 9 | G33: 1.00 | H33: =F33*G33 -> 9
A35: 1780.14(a) | B35: Security- Public Bodies- General Obligation and Revenue Bonds | C35: Written | D35: 500 | E35: 1 | F35: =D35*E35 -> 500 | G35: 4.00 | H35: =F35*G35 -> 2,000
B36: 7 CFR 1777-Colonias | D36: 0 | E36: 1 | F36: 0 | G36: 4.00 | H36: 0
B37: 7 CFR 1778-ECWAG | D37: 0 | E37: 1 | F37: =SUM(D37*E37) -> 0 | G37: 4.00 | H37: =SUM(F37*G37) -> 0
A39: 1780.14(b) | B39: Security- Not-For-Profit- Liens on property and Financing Stmt. | C39: Written | D39: 66 | E39: 1 | F39: =SUM(D39*E39) -> 66 | G39: 4.00 | H39: =SUM(F39*G39) -> 264
B40: 7 CFR 1777-Colonias | D40: 0 | E40: 1 | F40: =D40*E40 -> 0 | G40: 4.00 | H40: =F40*G40 -> 0
B41: 7 CFR 1778-ECWAG | D41: 0 | E41: 1 | F41: =D41*E41 -> 0 | G41: 4.00 | H41: =F41*G41 -> 0
A43: 1780.19 | B43: Public Information | C43: Written | D43: 789 | E43: 1 | F43: =SUM(D43*E43) -> 789 | G43: 2.00 | H43: =SUM(F43*G43) -> 1,578
B44: 7 CFR 1777-Colonias | D44: 30 | E44: 1 | F44: =D44*E44 -> 30 | G44: 2.00 | H44: =F44*G44 -> 60
B45: 7 CFR 1778-ECWAG | D45: 46 | E45: 1 | F45: =D45*E45 -> 46 | G45: 2.00 | H45: =F45*G45 -> 92
B46: SUBTOTAL | F46: =SUM(F19:F45) -> 3,507 | H46: =SUM(H19:H45) -> 6,632 | I46: =SUM(I23:I45) -> 0.00 | K46: =SUM(K23:K45) -> 0.00
B47: TOTAL OF ALL PAGES | F47: =SUM(F46,F84,F117,F151,F184,F216) -> 46,109 | H47: =SUM(H46,H84,H117,H151,H184,H216) -> 155,219 | I47: =SUM(I216) -> 14,000 | K47: =SUM(K216) -> 1,120
A48: TOTAL - Columns "F" and "I" = OMB 83I, 13 b; Columns "H" and "K" = OMB 83I, 13c | F48: =SUM(F47,I47) -> 60,109 | H48: =SUM(H47,K47) -> 156,339
A49: 1780.33(b) | B49: Intergovernmental comments | C49: Written | D49: 158 | E49: 1 | F49: =SUM(D49*E49) -> 158 | G49: 1.00 | H49: =SUM(F49*G49) -> 158
B50: 7 CFR 1777-Colonias | D50: 6 | E50: 1 | F50: =D50*E50 -> 6 | G50: 1.00 | H50: =F50*G50 -> 6
B51: 7 CFR 1778-ECWAG | D51: 9 | E51: 1 | F51: =D51*E51 -> 9 | G51: 1.00 | H51: =F51*G51 -> 9
A53: 1780.33(c) | B53: Preliminary engineering report | C53: Written | D53: 789 | E53: 1 | F53: =SUM(D53*E53) -> 789 | G53: 40.00 | H53: =SUM(F53*G53) -> 31,560
B54: 7 CFR 1777-Colonias | D54: 30 | E54: 1 | F54: =D54*E54 -> 30 | G54: 40.00 | H54: =F54*G54 -> 1,200
B55: 7 CFR 1778-ECWAG | D55: 46 | E55: 1 | F55: =D55*E55 -> 46 | G55: 40.00 | H55: =F55*G55 -> 1,840
A57: 1780.33(e) | B57: Supporting documentation | C57: Written | D57: 789 | E57: 1 | F57: =SUM(D57*E57) -> 789 | G57: 4.00 | H57: =SUM(F57*G57) -> 3,156
B58: 7 CFR 1777-Colonias | D58: 30 | E58: 1 | F58: =D58*E58 -> 30 | G58: 4.00 | H58: =F58*G58 -> 120
B59: 7 CFR 1778-ECWAG | D59: 46 | E59: 1 | F59: =D59*E59 -> 46 | G59: 4.00 | H59: =F59*G59 -> 184
A61: 1780.33(f) | B61: Environmental Report | C61: Written | D61: 789 | E61: 1 | F61: =D61*E61 -> 789 | G61: 24.00 | H61: =F61*G61 -> 18,936
B62: 7 CFR 1777-Colonias | D62: 30 | E62: 1 | F62: 30 | G62: 24.00 | H62: 720
B63: 7 CFR 1778-ECWAG | D63: 46 | E63: 1 | F63: 46 | G63: 24.00 | H63: =SUM(F63*G63) -> 1,104
A65: 1780.33(h)(5) | B65: Certification Regarding Debarment- Primary Covered Trans. | C65: AD-1047 | D65: 789 | E65: 1 | F65: =SUM(D65*E65) -> 789 | G65: 0.25 | H65: =SUM(F65*G65) -> 197
B66: 7 CFR 1777-Colonias | C66: (0505-0027) | D66: 30 | E66: 1 | F66: =D66*E66 -> 30 | G66: 0.25 | H66: =F66*G66 -> 8
B67: 7 CFR 1778-ECWAG | D67: 46 | E67: 1 | F67: =D67*E67 -> 46 | G67: 0.25 | H67: =F67*G67 -> 12
A69: 1780.33(h)(5) | B69: Certification Regarding Debarment- Lower Tier Covered Trans. | C69: AD-1048 | D69: 691 | E69: 4 | F69: =SUM(D69*E69) -> 2,764 | G69: 0.25 | H69: =SUM(F69*G69) -> 691
B70: 7 CFR 1777-Colonias | C70: (0505-0027) | D70: 28 | E70: 4 | F70: =D70*E70 -> 112 | G70: 0.25 | H70: =F70*G70 -> 28
B71: 7 CFR 1778-ECWAG | D71: 46 | E71: 4 | F71: =D71*E71 -> 184 | G71: 0.25 | H71: =F71*G71 -> 46
A73: 1780.33(h)(6) | B73: Certification Regarding Drug-Free Workplace | C73: AD-1049 | D73: 500 | E73: 1 | F73: =SUM(D73*E73) -> 500 | G73: 0.25 | H73: =SUM(F73*G73) -> 125
B74: 7 CFR 1777-Colonias | C74: (0505-0027) | D74: 28 | E74: 1 | F74: =D74*E74 -> 28 | G74: 0.25 | H74: =F74*G74 -> 7
B75: 7 CFR 1778-ECWAG | D75: 46 | E75: 1 | F75: =D75*E75 -> 46 | G75: 0.25 | H75: =F75*G75 -> 12
A77: 1780.33(h)(7) | B77: Cert. for Contracts, Grants, and Loans (Regarding Lobbying) | C77: RD 1940-Q | D77: 789 | E77: 1 | F77: =D77*E77 -> 789 | G77: 0.25 | H77: =F77*G77 -> 197
B78: 7 CFR 1777-Colonias | D78: 30 | E78: 1 | F78: 30 | G78: 0.25 | H78: =SUM(F78*G78) -> 8
B79: 7 CFR 1778-ECWAG | D79: 46 | E79: 1 | F79: 46 | G79: 0.25 | H79: =F79*G79 -> 12
A81: 1780.33(h)(8) | B81: Certification on Tying Arrangements | C81: Written | D81: 789 | E81: 1 | F81: =D81*E81 -> 789 | G81: 0.25 | H81: =SUM(F81*G81) -> 197
B82: 7 CFR 1777-Colonias | D82: 30 | E82: 1 | F82: 30 | G82: 0.25 | H82: =F82*G82 -> 8
B83: 7 CFR 1778-ECWAG | D83: 46 | E83: 1 | F83: 46 | G83: 0.25 | H83: 12
B84: SUBTOTAL | F84: =SUM(F49:F83) -> 8,997 | H84: =SUM(H49:H83) -> 60,550
A86: 1780.39(b)(1),(2) | B86: Agreements for professional services | C86: Written & | D86: 789 | E86: 1 | F86: =SUM(D86*E86) -> 789 | G86: 6.00 | H86: =SUM(F86*G86) -> 4,734
A87: , and (3) | B87: 7 CFR 1777-Colonias | C87: RUS Bulletin | D87: 30 | E87: 1 | F87: =D87*E87 -> 30 | G87: 6.00 | H87: =F87*G87 -> 180
B88: 7 CFR 1778-ECWAG | C88: 1780-7 | D88: 46 | E88: 1 | F88: =D88*E88 -> 46 | G88: 6.00 | H88: =F88*G88 -> 276
A90: 1780.39(b)(4) | B90: Contracts for other services | C90: Written | D90: 198 | E90: 1 | F90: =SUM(D90*E90) -> 198 | G90: 2.00 | H90: =SUM(F90*G90) -> 396
B91: 7 CFR 1777-Colonias | D91: 7 | E91: 1 | F91: =D91*E91 -> 7 | G91: 2.00 | H91: =F91*G91 -> 14
B92: 7 CFR 1778-ECWAG | D92: 12 | E92: 1 | F92: =D92*E92 -> 12 | G92: 2.00 | H92: =F92*G92 -> 24
A94: 1780.39(c)(3) | B94: User agreement | C94: Written & | D94: 158 | E94: 1 | F94: =SUM(D94*E94) -> 158 | G94: 4.00 | H94: =SUM(F94*G94) -> 632
B95: 7 CFR 1777-Colonias | C95: RUS Bulletin | D95: 6 | E95: 1 | F95: =D95*E95 -> 6 | G95: 4.00 | H95: =F95*G95 -> 24
B96: 7 CFR 1778-ECWAG | C96: 1780-9 | D96: 9 | E96: 1 | F96: =D96*E96 -> 9 | G96: 4.00 | H96: =F96*G96 -> 36
A98: 1780.39(c)(5)(i) | B98: Positive programs to encourage connections | C98: Written | D98: 158 | E98: 1 | F98: =SUM(D98*E98) -> 158 | G98: 4.00 | H98: =SUM(F98*G98) -> 632
B99: 7 CFR 1777-Colonias | D99: 6 | E99: 1 | F99: =D99*E99 -> 6 | G99: 4.00 | H99: =F99*G99 -> 24
B100: 7 CFR 1778-ECWAG | D100: 9 | E100: 1 | F100: =D100*E100 -> 9 | G100: 4.00 | H100: =F100*G100 -> 36
A102: 1780.39(d) | B102: Interim financing | C102: Written | D102: 453 | E102: 1 | F102: =SUM(D102*E102) -> 453 | G102: 4.00 | H102: =SUM(F102*G102) -> 1,812
B103: 7 CFR 1777-Colonias | D103: 0 | E103: 1 | F103: =D103*E103 -> 0 | G103: 4.00 | H103: =F103*G103 -> 0
B104: 7 CFR 1778-ECWAG | D104: 0 | E104: 1 | F104: =D104*E104 -> 0 | G104: 4.00 | H104: =F104*G104 -> 0
A106: 1780.39(g)(3) | B106: Fidelity or employee dishonesty Bond | C106: Written | D106: 566 | E106: 1 | F106: =SUM(D106*E106) -> 566 | G106: 2.00 | H106: =SUM(F106*G106) -> 1,132
B107: 7 CFR 1777-Colonias | D107: 0 | E107: 1 | F107: =D107*E107 -> 0 | G107: 2.00 | H107: =F107*G107 -> 0
B108: 7 CFR 1778-ECWAG | D108: 0 | E108: 1 | F108: =D108*E108 -> 0 | G108: 2.00 | H108: =F108*G108 -> 0
A110: 1780.39(g)(4) | B110: Property insurance | C110: Written | D110: 789 | E110: 1 | F110: =SUM(D110*E110) -> 789 | G110: 1.00 | H110: =SUM(F110*G110) -> 789
B111: 7 CFR 1777-Colonias | D111: 30 | E111: 1 | F111: =D111*E111 -> 30 | G111: 1.00 | H111: =F111*G111 -> 30
B112: 7 CFR 1778-ECWAG | D112: 46 | E112: 1 | F112: =D112*E112 -> 46 | G112: 1.00 | H112: =F112*G112 -> 46
A114: 1780.39(g)(5) | B114: General Liability Insurance | C114: Written | D114: 789 | E114: 1 | F114: =SUM(D114*E114) -> 789 | G114: 1.00 | H114: =SUM(F114*G114) -> 789
B115: 7 CFR 1777-Colonias | D115: 30 | E115: 1 | F115: =D115*E115 -> 30 | G115: 1.00 | H115: =F115*G115 -> 30
B116: 7 CFR 1778-ECWAG | D116: 46 | E116: 1 | F116: =D116*E116 -> 46 | G116: 1.00 | H116: =F116*G116 -> 46
B117: SUBTOTAL | F117: =SUM(F85:F116) -> 4,177 | H117: =SUM(H85:H116) -> 11,682
A118: 1780.39(g)(6) | B118: Flood Insurance | C118: Written | D118: 158 | E118: 1 | F118: =SUM(D118*E118) -> 158 | G118: 1.00 | H118: =SUM(F118*G118) -> 158
B119: 7 CFR 1777-Colonias | D119: 6 | E119: 1 | F119: =D119*E119 -> 6 | G119: 1.00 | H119: =F119*G119 -> 6
B120: 7 CFR 1778-ECWAG | D120: 9 | E120: 1 | F120: =D120*E120 -> 9 | G120: 1.00 | H120: =F120*G120 -> 9
A122: 1780.39(g)7) | B122: Workman's compensation insurance | C122: Written | D122: 789 | E122: 1 | F122: =SUM(D122*E122) -> 789 | G122: 1.00 | H122: =SUM(F122*G122) -> 789
B123: 7 CFR 1777-Colonias | D123: 30 | E123: 1 | F123: =D123*E123 -> 30 | G123: 1.00 | H123: =F123*G123 -> 30
B124: 7 CFR 1778-ECWAG | D124: 46 | E124: 1 | F124: =D124*E124 -> 46 | G124: 1.00 | H124: =F124*G124 -> 46
B126: Approval/Actions Following Obligation: (uses obligation data)
A127: 1780.41(a)(5) | B127: Letter of Conditions | C127: Written | D127: 722 | E127: 1 | F127: =D127*E127 -> 722 | G127: 1.00 | H127: =F127*G127 -> 722
B128: 7 CFR 1777-Colonias | D128: 28 | E128: 1 | F128: =D128*E128 -> 28 | G128: 1.00 | H128: 28
B129: 7 CFR 1778-ECWAG | D129: 46 | E129: 1 | F129: =SUM(D129*E129) -> 46 | G129: 1.00 | H129: =SUM(F129*G129) -> 46
A131: 1780.44(f) | B131: Evidence of other funds | C131: Written | D131: 144 | E131: 1 | F131: =SUM(D131*E131) -> 144 | G131: 1.00 | H131: =SUM(F131*G131) -> 144
B132: 7 CFR 1777-Colonias | D132: 6 | E132: 1 | F132: =D132*E132 -> 6 | G132: 1.00 | H132: =F132*G132 -> 6
B133: 7 CFR 1778-ECWAG | D133: 9 | E133: 1 | F133: =D133*E133 -> 9 | G133: 1.00 | H133: =F133*G133 -> 9
A135: 1780.44(g) | B135: Appraisal Report | C135: Written | D135: 85 | E135: 1 | F135: =SUM(D135*E135) -> 85 | G135: 2.00 | H135: =SUM(F135*G135) -> 170
B136: 7 CFR 1777-Colonias | D136: 0 | E136: 1 | F136: =D136*E136 -> 0 | G136: 2.00 | H136: =F136*G136 -> 0
B137: 7 CFR 1778-ECWAG | D137: 0 | E137: 1 | F137: =D137*E137 -> 0 | G137: 2.00 | H137: =F137*G137 -> 0
A139: 1780.44(g)(1)(ii) | B139: User Connections | C139: Written | D139: 72 | E139: 1 | F139: =SUM(D139*E139) -> 72 | G139: 4.00 | H139: =SUM(F139*G139) -> 288
B140: 7 CFR 1777-Colonias | D140: 3 | E140: 1 | F140: =D140*E140 -> 3 | G140: 4.00 | H140: =F140*G140 -> 12
B141: 7 CFR 1778-ECWAG | D141: 5 | E141: 1 | F141: =D141*E141 -> 5 | G141: 4.00 | H141: =F141*G141 -> 20
A143: 1780.44(g)(3) | B143: Water rights | C143: Written | D143: 72 | E143: 1 | F143: =D143*E143 -> 72 | G143: 4.00 | H143: =SUM(F143*G143) -> 288
B144: 7 CFR 1777-Colonias | D144: 3 | E144: 1 | F144: =D144*E144 -> 3 | G144: 4.00 | H144: =F144*G144 -> 12
B145: 7 CFR 1778-ECWAG | D145: 5 | E145: 1 | F145: =D145*E145 -> 5 | G145: 4.00 | H145: =F145*G145 -> 20
A147: 1780.44(g)(4) | B147: Lease agreement | C147: Written | D147: 72 | E147: 1 | F147: =SUM(D147*E147) -> 72 | G147: 4.00 | H147: =SUM(F147*G147) -> 288
B148: 7 CFR 1777-Colonias | D148: 3 | E148: 1 | F148: =D148*E148 -> 3 | G148: 4.00 | H148: =F148*G148 -> 12
B149: 7 CFR 1778-ECWAG | D149: 5 | E149: 1 | F149: =D149*E149 -> 5 | G149: 4.00 | H149: =F149*G149 -> 20
B151: SUBTOTAL | F151: =SUM(F118:F149) -> 2,318 | H151: =SUM(H118:H149) -> 3,123
A152: 1780.45(a)(2) | B152: Loan Resolution (Public Bodies) | C152: RUS Bulletin 1780-27 | D152: 500 | E152: 1 | F152: =SUM(D152*E152) -> 500 | G152: 1.00 | H152: =SUM(F152*G152) -> 500
B153: 7 CFR 1777-Colonias | D153: 0 | E153: 1 | F153: =D153*E153 -> 0 | G153: 1.00 | H153: =F153*G153 -> 0
B154: 7 CFR 1778-ECWAG | D154: 0 | E154: 1 | F154: =D154*E154 -> 0 | G154: 1.00 | H154: =F154*G154 -> 0
A156: 1780.45(a)(2) | B156: Loan Resolution, Security Agreement | C156: RUS Bulletin 1780-28 | D156: 66 | E156: 1 | F156: =SUM(D156*E156) -> 66 | G156: 1.00 | H156: =SUM(F156*G156) -> 66
B157: 7 CFR 1777-Colonias | D157: 0 | E157: 1 | F157: =D157*E157 -> 0 | G157: 1.00 | H157: =F157*G157 -> 0
B158: 7 CFR 1778-ECWAG | D158: 0 | E158: 1 | F158: =D158*E158 -> 0 | G158: 1.00 | H158: =F158*G158 -> 0
A160: 1780.45(c) | B160: Grant Agreement | C160: RUS Bulletin 1780-12 | D160: 500 | E160: 1 | F160: =SUM(D160*E160) -> 500 | G160: 1.00 | H160: =SUM(F160*G160) -> 500
B161: 7 CFR 1777-Colonias | D161: 28 | E161: 1 | F161: =D161*E161 -> 28 | G161: 1.00 | H161: =F161*G161 -> 28
B162: 7 CFR 1778-ECWAG | D162: 46 | E162: 1 | F162: =D162*E162 -> 46 | G162: 1.00 | H162: =F162*G162 -> 46
A164: 1780.47(d) & (e ) | B164: Audits and Year-End Financial Reports | C164: Written | D164: 722 | E164: 3 | F164: =SUM(D164*E164) -> 2,166 | G164: 8.00 | H164: =SUM(F164*G164) -> 17,328
B165: 7 CFR 1777-Colonias | D165: 28 | E165: 3 | F165: =D165*E165 -> 84 | G165: 8.00 | H165: =F165*G165 -> 672
B166: 7 CFR 1778-ECWAG | D166: 46 | E166: 3 | F166: =D166*E166 -> 138 | G166: 8.00 | H166: =F166*G166 -> 1,104
A168: 1780.47(f)(1) | B168: Management report- Quarterly Report | C168: Written | D168: 144 | E168: 4 | F168: =SUM(D168*E168) -> 576 | G168: 4.00 | H168: =SUM(F168*G168) -> 2,304
B169: 7 CFR 1777-Colonias | D169: 6 | E169: 4 | F169: =D169*E169 -> 24 | G169: 4.00 | H169: =F169*G169 -> 96
B170: 7 CFR 1778-ECWAG | D170: 9 | E170: 4 | F170: =D170*E170 -> 36 | G170: 4.00 | H170: =F170*G170 -> 144
B172: Actions during Construction: (uses construction data)
A173: 1780.61(a) | B173: Construction contract forms | C173: Written | D173: 691 | E173: 1 | F173: =SUM(D173*E173) -> 691 | G173: 8.00 | H173: =SUM(F173*G173) -> 5,528
B174: 7 CFR 1777-Colonias | D174: 28 | E174: 1 | F174: =D174*E174 -> 28 | G174: 8.00 | H174: =F174*G174 -> 224
B175: 7 CFR 1778-ECWAG | D175: 46 | E175: 1 | F175: =D175*E175 -> 46 | G175: 8.00 | H175: =F175*G175 -> 368
A177: 1780.61(b) | B177: Borrower attorney's certification of construction contract | C177: Written & | D177: 691 | E177: 1 | F177: =SUM(D177*E177) -> 691 | G177: 8.00 | H177: =SUM(F177*G177) -> 5,528
B178: 7 CFR 1777-Colonias | C178: Exhibit GC-H | D178: 28 | E178: 1 | F178: =D178*E178 -> 28 | G178: 8.00 | H178: =F178*G178 -> 224
B179: 7 CFR 1778-ECWAG | D179: 46 | E179: 1 | F179: =D179*E179 -> 46 | G179: 8.00 | H179: =F179*G179 -> 368
A181: 1780.70 | B181: Owner's Solicitation and Review of Offers | C181: Written | D181: 691 | E181: 1 | F181: =D181*E181 -> 691 | G181: 8.00 | H181: =F181*G181 -> 5,528
B182: 7 CFR 1777-Colonias | D182: 28 | E182: 1 | F182: 28 | G182: 8.00 | H182: 224
B183: 7 CFR 1778-ECWAG | D183: 46 | E183: 1 | F183: =SUM(D183*E183) -> 46 | G183: 8.00 | H183: =SUM(F183*G183) -> 368
B184: SUBTOTAL | F184: =SUM(F152:F183) -> 6,459 | H184: =SUM(H152:H183) -> 41,148
A186: 1780.74 | B186: Contracts awarded prior to application | C186: Written | D186: 35 | E186: 1 | F186: =SUM(D186*E186) -> 35 | G186: 2.00 | H186: =SUM(F186*G186) -> 70
B187: 7 CFR 1777-Colonias | D187: 1 | E187: 1 | F187: =D187*E187 -> 1 | G187: 2.00 | H187: =F187*G187 -> 2
B188: 7 CFR 1778-ECWAG | D188: 2 | E188: 1 | F188: =D188*E188 -> 2 | G188: 2.00 | H188: =F188*G188 -> 4
A190: 1780.76 (a) | B190: Pre-Construction Conference | C190: RD 1924-16 | D190: 691 | E190: 1 | F190: =SUM(D190*E190) -> 691 | G190: 1.00 | H190: =SUM(F190*G190) -> 691
B191: 7 CFR 1777 - Colonias | D191: 28 | E191: 1 | F191: 28 | G191: 1.00 | H191: 28
B192: 7 CFR 1778 -ECWAG | D192: 46 | E192: 1 | F192: 46 | G192: 1.00 | H192: 46
A194: 1780.76(b) | B194: Monitoring construction- Owner's Report | C194: Written | D194: 691 | E194: 12 | F194: =SUM(D194*E194) -> 8,292 | G194: 2.00 | H194: =SUM(F194*G194) -> 16,584
B195: 7 CFR 1777-Colonias | D195: 28 | E195: 12 | F195: =D195*E195 -> 336 | G195: 2.00 | H195: =F195*G195 -> 672
B196: 7 CFR 1778-ECWAG | D196: 46 | E196: 12 | F196: =D196*E196 -> 552 | G196: 5.00 | H196: =F196*G196 -> 2,760
A198: 1780.76(c) | B198: Resident Inspector resume | C198: Written | D198: 691 | E198: 1 | F198: =SUM(D198*E198) -> 691 | G198: 2.00 | H198: =SUM(F198*G198) -> 1,382
B199: 7 CFR 1777-Colonias | D199: 28 | E199: 1 | F199: =D199*E199 -> 28 | G199: 2.00 | H199: =F199*G199 -> 56
B200: 7 CFR 1778-ECWAG | D200: 46 | E200: 1 | F200: =D200*E200 -> 46 | G200: 2.00 | H200: =F200*G200 -> 92
A202: 1780.76(d) | B202: Daily inspection report | C202: Written | D202: 691 | E202: 12 | F202: =SUM(D202*E202) -> 8,292 | G202: 0.50 | H202: =SUM(F202*G202) -> 4,146
B203: 7 CFR 1777-Colonias | D203: 28 | E203: 12 | F203: =D203*E203 -> 336 | G203: 0.50 | H203: =F203*G203 -> 168
B204: 7 CFR 1778-ECWAG | D204: 46 | E204: 12 | F204: =D204*E204 -> 552 | G204: 0.50 | H204: =F204*G204 -> 276
A206: 1780.83 | B206: Bond Transcript Documents | C206: Written | D206: 610 | E206: 1 | F206: =D206*E206 -> 610 | G206: 8.00 | H206: =F206*G206 -> 4,880
B207: 7 CFR 1777-Colonias | D207: 0 | E207: 1 | F207: 0 | G207: 8.00 | H207: 0
B208: 7 CFR 1778-ECWAG | D208: 0 | E208: 1 | F208: =SUM(D208*E208) -> 0 | G208: 8.00 | H208: =SUM(F208*G208) -> 0
A210: 1780.89 & .90 | B210: Multiple Advances of Agency Funds (Bond Anticipation Note) | C210: Written | D210: 113 | E210: 1 | F210: 113 | G210: 2.00 | H210: 226
B211: 7 CFR 1777-Colonias | D211: 0 | E211: 1 | F211: =SUM(D211*E211) -> 0 | G211: 2.00 | H211: =SUM(F211*G211) -> 0
B212: 7 CFR 1778-ECWAG | D212: 0 | E212: 1 | F212: 0 | G212: 2.00 | H212: 0
A214: 1780.37(b) | B214: Borrower shall maintain accounting records for 3 years | I214: 7,000 | J214: 0.08 | K214: =SUM(I214*J214) -> 560
B215: Contractor required records | I215: 7,000 | J215: 0.08 | K215: =SUM(I215*J215) -> 560
B216: SUBTOTAL | F216: =SUM(F186:F214) -> 20,651 | H216: =SUM(H186:H214) -> 32,083 | I216: =SUM(I185:I215) -> 14,000 | K216: =SUM(K185:K215) -> 1,120
B217: FORMS APPROVED UNDER OTHER OMB NUMBERS
A218: 1780.29(b)(1) | B218: Agreement for Engineering Services | C218: 1942-19 | D218: 789 | E218: 1 | F218: =SUM(D218*E218) -> 789 | G218: 4.00 | H218: =SUM(F218*G218) -> 3,156
B219: 7 CFR 1777-Colonias | C219: (0575-0015) | D219: 30 | E219: 1 | F219: =SUM(D219*E219) -> 30 | G219: 4.00 | H219: 120
B220: 7 CFR 1778-ECWAG | D220: 46 | E220: 1 | F220: =SUM(D220*E220) -> 46 | G220: 4.00 | H220: 184
A222: 1780.33(a) | B222: Application for Federal Assistance- Initial Application | C222: SF 424 | D222: 789 | E222: 2 | F222: =SUM(D222*E222) -> 1,578 | G222: 1.00 | H222: =SUM(F222*G222) -> 1,578
B223: 7 CFR 1777-Colonias | C223: (4040-0004) | D223: 30 | E223: 2 | F223: =D223*E223 -> 60 | G223: 1.00 | H223: =F223*G223 -> 60
B224: 7 CFR 1778-ECWAG | D224: 46 | E224: 2 | F224: =D224*E224 -> 92 | G224: 1.00 | H224: =F224*G224 -> 92
A226: 1780.33(a) | B226: Budget Information--Non-Construction Programs | C226: SF-424A | D226: 789 | E226: 2 | F226: =SUM(D226*E226) -> 1,578 | G226: 1.00 | H226: =SUM(F226*G226) -> 1,578
B227: 7 CFR 1777-Colonias | C227: (4040-0006) | D227: 30 | E227: 2 | F227: =D227*E227 -> 60 | G227: 1.00 | H227: =F227*G227 -> 60
B228: 7 CFR 1778-ECWAG | D228: 46 | E228: 2 | F228: =D228*E228 -> 92 | G228: 1.00 | H228: =F228*G228 -> 92
A230: 1780.33(a) | B230: Assurances--Non-construction Programs | C230: SF-424B | D230: 789 | E230: 2 | F230: =SUM(D230*E230) -> 1,578 | G230: 1.00 | H230: =SUM(F230*G230) -> 1,578
B231: 7 CFR 1777-Colonias | C231: (4040-0007) | D231: 30 | E231: 2 | F231: =D231*E231 -> 60 | G231: 1.00 | H231: =F231*G231 -> 60
B232: 7 CFR 1778-ECWAG | D232: 46 | E232: 2 | F232: =D232*E232 -> 92 | G232: 1.00 | H232: =F232*G232 -> 92
A234: 1780.33(e) | B234: Representations Regarding Felony Conviction and Tax | C234: AD-3030 | D234: 789 | E234: 1 | F234: =SUM(D234*E234) -> 789 | G234: 0.25 | H234: =SUM(F234*G234) -> 197
B235: Delinquent Status for Corporate Applicants | C235: (0505-0025)
B236: 7 CFR 1777-Colonias | D236: 30 | E236: 1 | F236: 30 | G236: 0.25 | H236: 8
B237: 7 CFR 1778-ECWAG | D237: 46 | E237: 1 | F237: 46 | G237: 0.25 | H237: 12
A239: 1780.33(e) | B239: Assurances Regarding Felony Conviction and Tax Deilnquent | C239: AD-3031 | D239: 85 | E239: 1 | F239: 85 | G239: 0.25 | H239: 21
B240: Status for Corporate Applicants | C240: (0505-0025)
B241: 7 CFR 1777-Colonias | D241: 6 | E241: 1 | F241: 6 | G241: 0.25 | H241: 2
B242: 7 CFR 1778-ECWAG | D242: 8 | E242: 1 | F242: 8 | G242: 0.25 | H242: 2
A244: 1780.33(h)(1) | B244: Operating Budget | C244: RD 442-7 | D244: 789 | E244: 1 | F244: =SUM(D244*E244) -> 789 | G244: 5.00 | H244: =SUM(F244*G244) -> 3,945
B245: 7 CFR 1777-Colonias | C245: (0575-0015) | D245: 30 | E245: 1 | F245: =SUM(D245*E245) -> 30 | G245: 5.00 | H245: =SUM(F245*G245) -> 150
B246: 7 CFR 1778-ECWAG | D246: 46 | E246: 1 | F246: =SUM(D246*E246) -> 46 | G246: 5.00 | H246: =SUM(F246*G246) -> 230
A248: 1780.33(h)(3) | B248: Equal Opportunity Agreement | C248: RD 400-1 | D248: 789 | E248: 1 | F248: =SUM(D248*E248) -> 789 | G248: 0.08 | H248: =SUM(F248*G248) -> 63
B249: 7 CFR 1777-Colonias | C249: (0575-0018) | D249: 30 | E249: 1 | F249: =SUM(D249*E249) -> 30 | G249: 0.08 | H249: =SUM(F249*G249) -> 2
B250: 7 CFR 1778-ECWAG | D250: 46 | E250: 1 | F250: =SUM(D250*E250) -> 46 | G250: 0.08 | H250: =SUM(F250*G250) -> 4
A253: 1780.33(h)(4) | B253: Assurance Agreement | C253: RD 400-4 | D253: 789 | E253: 1 | F253: =SUM(D253*E253) -> 789 | G253: 0.25 | H253: =SUM(F253*G253) -> 197
B254: 7 CFR 1777-Colonias | C254: (0575-0018) | D254: 30 | E254: 1 | F254: =SUM(D254*E254) -> 30 | G254: 0.25 | H254: =SUM(F254*G254) -> 8
B255: 7 CFR 1778-ECWAG | D255: 46 | E255: 1 | F255: =SUM(D255*E255) -> 46 | G255: 0.25 | H255: =SUM(F255*G255) -> 12
... 50 more rows

Sheet Sheet2

Sheet Sheet3
